[Event "Titled Tuesday Blitz July 20 2021"]
[White "Quparadze, Giga"]
[Black "Peralta, Eduardo"]
[WhiteFideId "13602250"]
[BlackFideId "3700062"]
[WhiteElo "2658"]
[BlackElo "2205"]
[Result "1-0"]
[Round "05"]
[TimeControl "180+1"]
[Date "2021.07.20"]
[WhiteClock "0:00:19"]
[BlackClock "0:00:03"]

1. e4 {[%clk 0:03:00]}  Nf6 {[%clk 0:02:59]} 2. Nc3 {[%clk 0:03:00]}  e5 {[%clk 0:02:47]} 3. Nf3 {[%clk 0:02:59]}  Nc6 {[%clk 0:02:45]} 4. Bb5 {[%clk 0:02:59]}  Nd4 {[%clk 0:02:45]} 5. Bc4 {[%clk 0:02:58]}  c6 {[%clk 0:02:43]} 6. O-O {[%clk 0:02:35]}  d6 {[%clk 0:02:43]} 7. Nxd4 {[%clk 0:02:34]}  exd4 {[%clk 0:02:44]} 8. Ne2 {[%clk 0:02:34]}  Nxe4 {[%clk 0:02:38]} 9. Nxd4 {[%clk 0:02:34]}  d5 {[%clk 0:02:38]} 10. Bd3 {[%clk 0:02:33]}  Bc5 {[%clk 0:02:37]} 11. Nb3 {[%clk 0:02:29]}  Bb6 {[%clk 0:02:38]} 12. Bxe4 {[%clk 0:02:25]}  dxe4 {[%clk 0:02:38]} 13. Qe2 {[%clk 0:02:26]}  f5 {[%clk 0:02:24]} 14. d3 {[%clk 0:02:25]}  O-O {[%clk 0:02:23]} 15. dxe4 {[%clk 0:02:25]}  fxe4 {[%clk 0:02:22]} 16. Be3 {[%clk 0:02:17]}  Bc7 {[%clk 0:02:16]} 17. Qc4+ {[%clk 0:02:12]}  Kh8 {[%clk 0:01:58]} 18. Qxe4 {[%clk 0:02:08]}  Bf5 {[%clk 0:01:57]} 19. Qc4 {[%clk 0:02:07]}  Qd6 {[%clk 0:01:53]} 20. g3 {[%clk 0:02:04]}  Rae8 {[%clk 0:01:48]} 21. Bc5 {[%clk 0:02:01]}  Qf6 {[%clk 0:01:43]} 22. Bxf8 {[%clk 0:02:00]}  Rxf8 {[%clk 0:01:43]} 23. Rae1 {[%clk 0:01:54]}  Bh3 {[%clk 0:01:39]} 24. Qd4 {[%clk 0:01:53]}  Qf7 {[%clk 0:01:27]} 25. Qh4 {[%clk 0:01:42]}  Bxf1 {[%clk 0:01:20]} 26. Rxf1 {[%clk 0:01:43]}  Bb6 {[%clk 0:01:20]} 27. Qe4 {[%clk 0:01:42]}  Qf6 {[%clk 0:01:16]} 28. c3 {[%clk 0:01:40]}  h6 {[%clk 0:01:13]} 29. Kg2 {[%clk 0:01:40]}  a6 {[%clk 0:01:11]} 30. Nd2 {[%clk 0:01:39]}  Qf7 {[%clk 0:01:07]} 31. Nc4 {[%clk 0:01:35]}  Bc7 {[%clk 0:01:06]} 32. b3 {[%clk 0:01:31]}  Re8 {[%clk 0:01:07]} 33. Qf3 {[%clk 0:01:30]}  Qe6 {[%clk 0:01:01]} 34. Rd1 {[%clk 0:01:29]}  b5 {[%clk 0:00:59]} 35. Ne3 {[%clk 0:01:29]}  Kg8 {[%clk 0:00:59]} 36. Qf5 {[%clk 0:01:25]}  Qxf5 {[%clk 0:00:57]} 37. Nxf5 {[%clk 0:01:26]}  Re2 {[%clk 0:00:55]} 38. Rd7 {[%clk 0:01:00]}  Bb6 {[%clk 0:00:46]} 39. Rxg7+ {[%clk 0:00:59]}  Kf8 {[%clk 0:00:45]} 40. Rb7 {[%clk 0:00:59]}  Rxf2+ {[%clk 0:00:33]} 41. Kh3 {[%clk 0:00:59]}  Ba5 {[%clk 0:00:33]} 42. Nxh6 {[%clk 0:00:50]}  Bxc3 {[%clk 0:00:31]} 43. Rb6 {[%clk 0:00:50]}  Rxa2 {[%clk 0:00:24]} 44. Rxc6 {[%clk 0:00:50]}  b4 {[%clk 0:00:24]} 45. Nf5 {[%clk 0:00:43]}  Ra3 {[%clk 0:00:23]} 46. Nd6 {[%clk 0:00:40]}  Rxb3 {[%clk 0:00:21]} 47. Rxa6 {[%clk 0:00:40]}  Rb2 {[%clk 0:00:19]} 48. Nc4 {[%clk 0:00:40]}  Rf2 {[%clk 0:00:18]} 49. Rb6 {[%clk 0:00:38]}  Ke7 {[%clk 0:00:13]} 50. Ne3 {[%clk 0:00:37]}  Kd7 {[%clk 0:00:12]} 51. Nd5 {[%clk 0:00:37]}  Rf5 {[%clk 0:00:11]} 52. Nxb4 {[%clk 0:00:32]}  Ra5 {[%clk 0:00:04]} 53. Nd3 {[%clk 0:00:26]}  Kc7 {[%clk 0:00:04]} 54. Rb3 {[%clk 0:00:25]}  Bd4 {[%clk 0:00:04]} 55. Rb4 {[%clk 0:00:25]}  Be3 {[%clk 0:00:02]} 56. Rc4+ {[%clk 0:00:25]}  Kd6 {[%clk 0:00:03]} 57. Re4 {[%clk 0:00:25]}  Ba7 {[%clk 0:00:03]} 58. Nf4 {[%clk 0:00:25]}  Kd7 {[%clk 0:00:03]} 59. Kg2 {[%clk 0:00:25]}  Bb8 {[%clk 0:00:03]} 60. h4 {[%clk 0:00:24]}  Ra2+ {[%clk 0:00:04]} 61. Kh3 {[%clk 0:00:24]}  Ra5 {[%clk 0:00:04]} 62. Kg4 {[%clk 0:00:24]}  Ra3 {[%clk 0:00:01]} 63. h5 {[%clk 0:00:24]}  Ba7 {[%clk 0:00:02]} 64. h6 {[%clk 0:00:23]}  Bf2 {[%clk 0:00:03]} 65. h7 {[%clk 0:00:21]}  Rxg3+ {[%clk 0:00:02]} 66. Kf5 {[%clk 0:00:21]}  Rg7 {[%clk 0:00:01]} 67. h8=Q {[%clk 0:00:20]}  Bd4 {[%clk 0:00:02]} 68. Rxd4+ {[%clk 0:00:19]}  Kc6 {[%clk 0:00:03]} 1-0


[Site "https://www.chess.com"]

[Event "Titled Tuesday Blitz July 20 2021"]
[White "Rahman, Ziaur"]
[Black "Terry, Renato"]
[WhiteFideId "10200037"]
[BlackFideId "3803457"]
[WhiteElo "2460"]
[BlackElo "2581"]
[Result "1-0"]
[Round "05"]
[TimeControl "180+1"]
[Date "2021.07.20"]
[WhiteClock "0:00:26"]
[BlackClock "0:00:02"]

1. d4 {[%clk 0:03:00]}  e6 {[%clk 0:02:59]} 2. Bf4 {[%clk 0:02:54]}  Nf6 {[%clk 0:02:59]} 3. e3 {[%clk 0:02:53]}  b6 {[%clk 0:02:58]} 4. Qf3 {[%clk 0:02:53]}  Nc6 {[%clk 0:02:42]} 5. Nc3 {[%clk 0:02:52]}  Bb7 {[%clk 0:02:41]} 6. O-O-O {[%clk 0:02:50]}  Na5 {[%clk 0:02:23]} 7. e4 {[%clk 0:02:40]}  Bb4 {[%clk 0:02:22]} 8. Nge2 {[%clk 0:02:21]}  O-O {[%clk 0:02:17]} 9. h4 {[%clk 0:02:10]}  Nxe4 {[%clk 0:01:57]} 10. Nxe4 {[%clk 0:02:09]}  f5 {[%clk 0:01:57]} 11. Qg3 {[%clk 0:02:07]}  Bxe4 {[%clk 0:01:57]} 12. Bxc7 {[%clk 0:02:03]}  Qc8 {[%clk 0:01:00]} 13. c3 {[%clk 0:01:58]}  f4 {[%clk 0:00:33]} 14. Bxf4 {[%clk 0:01:51]}  Qc4 {[%clk 0:00:17]} 15. Be5 {[%clk 0:01:35]}  Rf7 {[%clk 0:00:15]} 16. Qe3 {[%clk 0:01:26]}  Bf5 {[%clk 0:00:14]} 17. Ng3 {[%clk 0:01:19]}  Qxa2 {[%clk 0:00:14]} 18. Nxf5 {[%clk 0:01:18]}  Rxf5 {[%clk 0:00:14]} 19. Bd3 {[%clk 0:01:12]}  Rc8 {[%clk 0:00:09]} 20. Bb1 {[%clk 0:01:07]}  Nb3+ {[%clk 0:00:07]} 21. Kc2 {[%clk 0:01:06]}  Qa4 {[%clk 0:00:07]} 22. Kd3 {[%clk 0:01:01]}  Qb5+ {[%clk 0:00:07]} 23. Kc2 {[%clk 0:00:58]}  Qa4 {[%clk 0:00:07]} 24. Kd3 {[%clk 0:00:54]}  Qb5+ {[%clk 0:00:02]} 25. Kc2 {[%clk 0:00:49]}  Be7 {[%clk 0:00:02]} 26. Ba2 {[%clk 0:00:42]}  Na5 {[%clk 0:00:02]} 27. Kb1 {[%clk 0:00:40]}  Nc4 {[%clk 0:00:01]} 28. Bxc4 {[%clk 0:00:38]}  Rxc4 {[%clk 0:00:02]} 29. g4 {[%clk 0:00:35]}  Rf7 {[%clk 0:00:01]} 30. Qe2 {[%clk 0:00:30]}  Qb3 {[%clk 0:00:02]} 31. Qc2 {[%clk 0:00:29]}  Qb5 {[%clk 0:00:02]} 32. Bg3 {[%clk 0:00:28]}  Rc6 {[%clk 0:00:02]} 33. Rhe1 {[%clk 0:00:26]} 1-0


[Site "https://www.chess.com"]

[Event "Titled Tuesday Blitz July 20 2021"]
[White "Rozhkov, Viacheslav"]
[Black "Belyakov, Bogdan"]
[WhiteFideId "4181484"]
[BlackFideId "24104795"]
[WhiteElo "2324"]
[BlackElo "2407"]
[Result "1/2-1/2"]
[Round "05"]
[TimeControl "180+1"]
[Date "2021.07.21"]
[WhiteClock "0:00:10"]
[BlackClock "0:00:35"]

1. e4 {[%clk 0:03:00]}  e5 {[%clk 0:02:55]} 2. Nf3 {[%clk 0:03:00]}  Nc6 {[%clk 0:02:55]} 3. d4 {[%clk 0:03:00]}  exd4 {[%clk 0:02:55]} 4. Bc4 {[%clk 0:03:00]}  Bc5 {[%clk 0:02:54]} 5. Ng5 {[%clk 0:02:57]}  Nh6 {[%clk 0:02:48]} 6. Nxf7 {[%clk 0:02:57]}  Nxf7 {[%clk 0:02:49]} 7. Bxf7+ {[%clk 0:02:57]}  Kxf7 {[%clk 0:02:50]} 8. Qh5+ {[%clk 0:02:58]}  g6 {[%clk 0:02:50]} 9. Qxc5 {[%clk 0:02:58]}  d5 {[%clk 0:02:50]} 10. O-O {[%clk 0:02:37]}  dxe4 {[%clk 0:02:50]} 11. Nd2 {[%clk 0:02:36]}  Qe7 {[%clk 0:02:43]} 12. Qb5 {[%clk 0:02:19]}  a6 {[%clk 0:02:36]} 13. Qb3+ {[%clk 0:02:19]}  Qe6 {[%clk 0:02:33]} 14. Nxe4 {[%clk 0:02:18]}  Qxb3 {[%clk 0:02:31]} 15. axb3 {[%clk 0:02:18]}  Re8 {[%clk 0:02:29]} 16. f3 {[%clk 0:02:05]}  Bf5 {[%clk 0:02:26]} 17. Bf4 {[%clk 0:02:05]}  Bxe4 {[%clk 0:02:23]} 18. fxe4 {[%clk 0:02:03]}  Rxe4 {[%clk 0:02:24]} 19. Bxc7+ {[%clk 0:01:58]}  Kg7 {[%clk 0:02:23]} 20. c3 {[%clk 0:01:28]}  Rf8 {[%clk 0:02:14]} 21. Rxf8 {[%clk 0:01:22]}  Kxf8 {[%clk 0:02:14]} 22. Rd1 {[%clk 0:01:20]}  Ke7 {[%clk 0:02:07]} 23. Bb6 {[%clk 0:01:16]}  Re2 {[%clk 0:01:54]} 24. Bxd4 {[%clk 0:01:09]}  Rxb2 {[%clk 0:01:48]} 25. Bc5+ {[%clk 0:01:04]}  Ke8 {[%clk 0:01:45]} 26. b4 {[%clk 0:01:04]}  Rc2 {[%clk 0:01:44]} 27. Rd3 {[%clk 0:01:04]}  h5 {[%clk 0:01:33]} 28. h4 {[%clk 0:01:03]}  Kf7 {[%clk 0:01:33]} 29. Rd7+ {[%clk 0:00:58]}  Ke6 {[%clk 0:01:33]} 30. Rxb7 {[%clk 0:00:53]}  Rxc3 {[%clk 0:01:33]} 31. Rb6 {[%clk 0:00:42]}  Kd5 {[%clk 0:01:33]} 32. Rxa6 {[%clk 0:00:42]}  Rb3 {[%clk 0:01:27]} 33. Kf2 {[%clk 0:00:36]}  Ne5 {[%clk 0:01:22]} 34. Rd6+ {[%clk 0:00:35]}  Ke4 {[%clk 0:01:22]} 35. Rd4+ {[%clk 0:00:35]}  Kf5 {[%clk 0:01:22]} 36. Bd6 {[%clk 0:00:24]}  Ng4+ {[%clk 0:01:20]} 37. Ke2 {[%clk 0:00:22]}  Rb2+ {[%clk 0:01:19]} 38. Kf3 {[%clk 0:00:20]}  Rf2+ {[%clk 0:01:08]} 39. Kg3 {[%clk 0:00:20]}  Rb2 {[%clk 0:01:08]} 40. Rf4+ {[%clk 0:00:20]}  Ke6 {[%clk 0:01:08]} 41. Bc5 {[%clk 0:00:20]}  Rb1 {[%clk 0:01:01]} 42. Rf8 {[%clk 0:00:19]}  Nf6 {[%clk 0:00:59]} 43. Kf4 {[%clk 0:00:17]}  Rb3 {[%clk 0:00:49]} 44. Kg5 {[%clk 0:00:12]}  Rg3+ {[%clk 0:00:48]} 45. Kh6 {[%clk 0:00:12]}  Rxg2 {[%clk 0:00:42]} 46. Kg7 {[%clk 0:00:10]}  Nd7 {[%clk 0:00:42]} 47. Re8+ {[%clk 0:00:10]}  Kd5 {[%clk 0:00:42]} 48. Rd8 {[%clk 0:00:10]}  Kc6 {[%clk 0:00:42]} 49. b5+ {[%clk 0:00:10]}  Kxc5 {[%clk 0:00:37]} 50. Rxd7 {[%clk 0:00:10]}  Rg4 {[%clk 0:00:36]} 51. Rb7 {[%clk 0:00:08]}  Rxh4 {[%clk 0:00:33]} 52. Kxg6 {[%clk 0:00:08]}  Rh1 {[%clk 0:00:34]} 53. Kg5 {[%clk 0:00:08]}  h4 {[%clk 0:00:34]} 54. Kg4 {[%clk 0:00:09]}  h3 {[%clk 0:00:34]} 55. Kg3 {[%clk 0:00:09]}  h2 {[%clk 0:00:34]} 56. Kg2 {[%clk 0:00:09]}  Rb1 {[%clk 0:00:34]} 57. Kxh2 {[%clk 0:00:10]}  Rxb5 {[%clk 0:00:35]} 58. Rxb5+ {[%clk 0:00:10]}  Kxb5 {[%clk 0:00:35]} 1/2-1/2


[Site "https://www.chess.com"]

[Event "Titled Tuesday Blitz July 20 2021"]
[White "Saravana, Krishnan P."]
[Black "Aradhya, Garg"]
[WhiteFideId "5018382"]
[BlackFideId "25006746"]
[WhiteElo "2245"]
[BlackElo "2146"]
[Result "1/2-1/2"]
[Round "05"]
[TimeControl "180+1"]
[Date "2021.07.21"]
[WhiteClock "0:00:20"]
[BlackClock "0:00:13"]

1. e4 {[%clk 0:03:00]}  e5 {[%clk 0:02:59]} 2. Nf3 {[%clk 0:03:00]}  Nc6 {[%clk 0:03:00]} 3. Bb5 {[%clk 0:03:00]}  a6 {[%clk 0:02:59]} 4. Ba4 {[%clk 0:03:00]}  Nf6 {[%clk 0:02:59]} 5. d3 {[%clk 0:03:00]}  b5 {[%clk 0:02:59]} 6. Bb3 {[%clk 0:03:00]}  Bc5 {[%clk 0:02:56]} 7. c3 {[%clk 0:02:59]}  O-O {[%clk 0:02:56]} 8. h3 {[%clk 0:02:54]}  d5 {[%clk 0:02:52]} 9. Qe2 {[%clk 0:02:52]}  h6 {[%clk 0:02:18]} 10. Nbd2 {[%clk 0:02:47]}  Be6 {[%clk 0:02:17]} 11. Nf1 {[%clk 0:02:37]}  a5 {[%clk 0:02:11]} 12. g4 {[%clk 0:02:35]}  a4 {[%clk 0:02:11]} 13. Bc2 {[%clk 0:02:33]}  dxe4 {[%clk 0:02:11]} 14. dxe4 {[%clk 0:02:30]}  Bc4 {[%clk 0:02:11]} 15. Qd1 {[%clk 0:02:20]}  Qxd1+ {[%clk 0:02:08]} 16. Bxd1 {[%clk 0:02:13]}  Nxe4 {[%clk 0:02:08]} 17. Ne3 {[%clk 0:02:10]}  Bd3 {[%clk 0:01:57]} 18. a3 {[%clk 0:02:07]}  Rad8 {[%clk 0:01:46]} 19. h4 {[%clk 0:02:02]}  Nf6 {[%clk 0:01:32]} 20. g5 {[%clk 0:01:58]}  hxg5 {[%clk 0:01:32]} 21. hxg5 {[%clk 0:01:58]}  Nd5 {[%clk 0:01:32]} 22. Ng4 {[%clk 0:01:48]}  Nf4 {[%clk 0:01:13]} 23. Rh2 {[%clk 0:01:34]}  Rfe8 {[%clk 0:01:10]} 24. Be3 {[%clk 0:01:29]}  Bxe3 {[%clk 0:01:07]} 25. fxe3 {[%clk 0:01:29]}  Bf5 {[%clk 0:00:59]} 26. Nf2 {[%clk 0:00:44]}  Nd3+ {[%clk 0:00:52]} 27. Nxd3 {[%clk 0:00:43]}  Bxd3 {[%clk 0:00:53]} 28. Nd2 {[%clk 0:00:35]}  e4 {[%clk 0:00:44]} 29. Bh5 {[%clk 0:00:35]}  Ne5 {[%clk 0:00:41]} 30. O-O-O {[%clk 0:00:26]}  g6 {[%clk 0:00:24]} 31. Be2 {[%clk 0:00:26]}  Bxe2 {[%clk 0:00:24]} 32. Rxe2 {[%clk 0:00:26]}  Nd3+ {[%clk 0:00:20]} 33. Kc2 {[%clk 0:00:25]}  Rd5 {[%clk 0:00:18]} 34. Nxe4 {[%clk 0:00:17]}  Rxe4 {[%clk 0:00:18]} 35. Rxd3 {[%clk 0:00:18]}  Rxg5 {[%clk 0:00:19]} 36. Rd8+ {[%clk 0:00:17]}  Kg7 {[%clk 0:00:18]} 37. Rd7 {[%clk 0:00:18]}  c5 {[%clk 0:00:17]} 38. Rf2 {[%clk 0:00:19]}  Rf5 {[%clk 0:00:17]} 39. Rxf5 {[%clk 0:00:18]}  gxf5 {[%clk 0:00:18]} 40. Rd5 {[%clk 0:00:19]}  Rxe3 {[%clk 0:00:17]} 41. Rxf5 {[%clk 0:00:18]}  Re6 {[%clk 0:00:14]} 42. Rxc5 {[%clk 0:00:18]}  Rb6 {[%clk 0:00:15]} 43. c4 {[%clk 0:00:18]}  bxc4 {[%clk 0:00:15]} 44. Rxc4 {[%clk 0:00:18]}  Ra6 {[%clk 0:00:15]} 45. b3 {[%clk 0:00:18]}  axb3+ {[%clk 0:00:15]} 46. Kxb3 {[%clk 0:00:19]}  f5 {[%clk 0:00:14]} 47. a4 {[%clk 0:00:18]}  Kf6 {[%clk 0:00:14]} 48. Kb4 {[%clk 0:00:18]}  Kg5 {[%clk 0:00:14]} 49. Kb5 {[%clk 0:00:19]}  Ra8 {[%clk 0:00:14]} 50. a5 {[%clk 0:00:19]}  f4 {[%clk 0:00:14]} 51. a6 {[%clk 0:00:19]}  f3 {[%clk 0:00:14]} 52. Kb6 {[%clk 0:00:19]}  f2 {[%clk 0:00:13]} 53. Rc1 {[%clk 0:00:19]}  Kf4 {[%clk 0:00:13]} 54. Rf1 {[%clk 0:00:19]}  Ke3 {[%clk 0:00:13]} 55. Rxf2 {[%clk 0:00:19]}  Kxf2 {[%clk 0:00:13]} 56. Kb7 {[%clk 0:00:20]}  Rxa6 {[%clk 0:00:13]} 57. Kxa6 {[%clk 0:00:20]} 1/2-1/2


[Site "https://www.chess.com"]

[Event "Titled Tuesday Blitz July 20 2021"]
[White "Sargsyan, Anna M."]
[Black "Semenova, Elena"]
[WhiteFideId "13308130"]
[BlackFideId "24125148"]
[WhiteElo "2263"]
[BlackElo "2075"]
[Result "1-0"]
[Round "05"]
[TimeControl "180+1"]
[Date "2021.07.21"]
[WhiteClock "0:01:04"]
[BlackClock "0:00:12"]

1. d4 {[%clk 0:03:00]}  f5 {[%clk 0:02:58]} 2. c4 {[%clk 0:03:01]}  Nf6 {[%clk 0:02:58]} 3. Nc3 {[%clk 0:03:02]}  g6 {[%clk 0:02:58]} 4. Bg5 {[%clk 0:03:02]}  Bg7 {[%clk 0:02:58]} 5. Qc2 {[%clk 0:03:02]}  O-O {[%clk 0:02:56]} 6. O-O-O {[%clk 0:03:03]}  d6 {[%clk 0:02:55]} 7. Bxf6 {[%clk 0:03:03]}  Bxf6 {[%clk 0:02:54]} 8. e4 {[%clk 0:03:04]}  Nc6 {[%clk 0:02:42]} 9. e5 {[%clk 0:02:58]}  Bg5+ {[%clk 0:02:19]} 10. Kb1 {[%clk 0:02:58]}  dxe5 {[%clk 0:02:10]} 11. dxe5 {[%clk 0:02:57]}  Nd4 {[%clk 0:02:09]} 12. Qd3 {[%clk 0:02:47]}  Ne6 {[%clk 0:02:02]} 13. Qe2 {[%clk 0:02:45]}  Nd4 {[%clk 0:01:55]} 14. Qd3 {[%clk 0:02:36]}  Ne6 {[%clk 0:01:55]} 15. Qxd8 {[%clk 0:02:37]}  Rxd8 {[%clk 0:01:47]} 16. g3 {[%clk 0:02:32]}  Rxd1+ {[%clk 0:01:42]} 17. Nxd1 {[%clk 0:02:33]}  Bd7 {[%clk 0:01:33]} 18. Bg2 {[%clk 0:02:30]}  Bc6 {[%clk 0:01:29]} 19. Bxc6 {[%clk 0:02:27]}  bxc6 {[%clk 0:01:30]} 20. f4 {[%clk 0:02:27]}  Bh6 {[%clk 0:01:29]} 21. Nf3 {[%clk 0:02:23]}  Rd8 {[%clk 0:01:29]} 22. Ne3 {[%clk 0:02:20]}  Nc5 {[%clk 0:01:28]} 23. Kc2 {[%clk 0:02:17]}  Kf7 {[%clk 0:01:19]} 24. b4 {[%clk 0:02:09]}  Ne4 {[%clk 0:01:10]} 25. c5 {[%clk 0:02:09]}  Ke6 {[%clk 0:00:54]} 26. Nc4 {[%clk 0:02:07]}  g5 {[%clk 0:00:50]} 27. fxg5 {[%clk 0:02:00]}  Nxg5 {[%clk 0:00:51]} 28. Nxg5+ {[%clk 0:01:59]}  Bxg5 {[%clk 0:00:52]} 29. Na5 {[%clk 0:01:58]}  Rd2+ {[%clk 0:00:50]} 30. Kc3 {[%clk 0:01:56]}  Rxa2 {[%clk 0:00:47]} 31. Nxc6 {[%clk 0:01:54]}  Kd5 {[%clk 0:00:42]} 32. Nd4 {[%clk 0:01:49]}  Kxe5 {[%clk 0:00:32]} 33. Re1+ {[%clk 0:01:38]}  Kf6 {[%clk 0:00:21]} 34. Re6+ {[%clk 0:01:37]}  Kf7 {[%clk 0:00:21]} 35. Rc6 {[%clk 0:01:25]}  Bf6 {[%clk 0:00:21]} 36. Rxc7 {[%clk 0:01:19]}  Ra3+ {[%clk 0:00:20]} 37. Kc4 {[%clk 0:01:18]}  Re3 {[%clk 0:00:19]} 38. Nxf5 {[%clk 0:01:15]}  Re2 {[%clk 0:00:19]} 39. Rxa7 {[%clk 0:01:09]}  Rxh2 {[%clk 0:00:19]} 40. c6 {[%clk 0:01:09]}  Rc2+ {[%clk 0:00:18]} 41. Kb5 {[%clk 0:01:09]}  Ke6 {[%clk 0:00:18]} 42. Ne3 {[%clk 0:01:09]}  Rc3 {[%clk 0:00:17]} 43. Nc4 {[%clk 0:01:08]}  Kd5 {[%clk 0:00:15]} 44. Rd7+ {[%clk 0:01:04]}  Ke6 {[%clk 0:00:14]} 45. Rd1 {[%clk 0:01:05]}  Be5 {[%clk 0:00:12]} 46. Re1 {[%clk 0:01:04]} 1-0


[Site "https://www.chess.com"]

[Event "Titled Tuesday Blitz July 20 2021"]
[White "Seo, Jung Min"]
[Black "Rottenwohrer Suarez, Juan"]
[WhiteFideId "1734687"]
[BlackFideId "32068182"]
[WhiteElo "2486"]
[BlackElo "2158"]
[Result "1-0"]
[Round "05"]
[TimeControl "180+1"]
[Date "2021.07.21"]
[WhiteClock "0:00:02"]
[BlackClock "0:00:02"]

1. Nf3 {[%clk 0:03:00]}  Nf6 {[%clk 0:02:58]} 2. d4 {[%clk 0:03:01]}  g6 {[%clk 0:02:56]} 3. Nc3 {[%clk 0:03:00]}  d5 {[%clk 0:02:55]} 4. Bg5 {[%clk 0:02:59]}  Bg7 {[%clk 0:02:55]} 5. Qd2 {[%clk 0:03:00]}  O-O {[%clk 0:02:49]} 6. Bh6 {[%clk 0:02:59]}  c5 {[%clk 0:02:49]} 7. Bxg7 {[%clk 0:02:58]}  Kxg7 {[%clk 0:02:48]} 8. dxc5 {[%clk 0:02:58]}  Na6 {[%clk 0:02:43]} 9. O-O-O {[%clk 0:02:52]}  Be6 {[%clk 0:02:37]} 10. Nd4 {[%clk 0:02:39]}  Nxc5 {[%clk 0:02:36]} 11. Nxe6+ {[%clk 0:02:40]}  fxe6 {[%clk 0:02:36]} 12. f3 {[%clk 0:02:38]}  Rc8 {[%clk 0:02:32]} 13. e3 {[%clk 0:02:37]}  Qa5 {[%clk 0:02:27]} 14. Kb1 {[%clk 0:02:37]}  Rc6 {[%clk 0:02:19]} 15. Nb5 {[%clk 0:02:30]}  Qxd2 {[%clk 0:02:11]} 16. Rxd2 {[%clk 0:02:29]}  a6 {[%clk 0:02:10]} 17. Nd4 {[%clk 0:02:29]}  Rb6 {[%clk 0:02:07]} 18. Be2 {[%clk 0:02:29]}  e5 {[%clk 0:02:01]} 19. Nb3 {[%clk 0:02:28]}  Nxb3 {[%clk 0:02:02]} 20. axb3 {[%clk 0:02:28]}  Rc8 {[%clk 0:02:00]} 21. Rhd1 {[%clk 0:02:24]}  Rbc6 {[%clk 0:01:59]} 22. b4 {[%clk 0:02:20]}  b5 {[%clk 0:01:56]} 23. c3 {[%clk 0:02:19]}  g5 {[%clk 0:01:54]} 24. g3 {[%clk 0:02:16]}  e6 {[%clk 0:01:53]} 25. e4 {[%clk 0:02:10]}  dxe4 {[%clk 0:01:46]} 26. fxe4 {[%clk 0:02:10]}  R8c7 {[%clk 0:01:37]} 27. Rd6 {[%clk 0:02:02]}  Kf7 {[%clk 0:01:22]} 28. Bf3 {[%clk 0:02:02]}  Ke7 {[%clk 0:01:21]} 29. R6d3 {[%clk 0:02:00]}  Rd7 {[%clk 0:01:17]} 30. Rxd7+ {[%clk 0:01:58]}  Nxd7 {[%clk 0:01:18]} 31. Kc2 {[%clk 0:01:57]}  Rd6 {[%clk 0:01:15]} 32. Ra1 {[%clk 0:01:55]}  h6 {[%clk 0:01:01]} 33. b3 {[%clk 0:01:54]}  Nb8 {[%clk 0:00:56]} 34. Be2 {[%clk 0:01:49]}  Kd7 {[%clk 0:00:42]} 35. h4 {[%clk 0:01:45]}  Kc7 {[%clk 0:00:36]} 36. hxg5 {[%clk 0:01:44]}  hxg5 {[%clk 0:00:37]} 37. Rf1 {[%clk 0:01:40]}  Rd7 {[%clk 0:00:37]} 38. Rf6 {[%clk 0:01:39]}  Kd6 {[%clk 0:00:27]} 39. Rg6 {[%clk 0:01:38]}  Rf7 {[%clk 0:00:27]} 40. Bg4 {[%clk 0:01:38]}  Rf2+ {[%clk 0:00:24]} 41. Kd3 {[%clk 0:01:33]}  Rg2 {[%clk 0:00:24]} 42. Rxe6+ {[%clk 0:01:33]}  Kc7 {[%clk 0:00:24]} 43. Be2 {[%clk 0:01:18]}  Rxg3+ {[%clk 0:00:23]} 44. Kd2 {[%clk 0:01:18]}  Nc6 {[%clk 0:00:23]} 45. Rg6 {[%clk 0:01:17]}  Rg2 {[%clk 0:00:22]} 46. Rg7+ {[%clk 0:01:13]}  Kb6 {[%clk 0:00:22]} 47. Ke3 {[%clk 0:01:13]}  Rg3+ {[%clk 0:00:21]} 48. Bf3 {[%clk 0:01:13]}  a5 {[%clk 0:00:19]} 49. bxa5+ {[%clk 0:01:03]}  Nxa5 {[%clk 0:00:19]} 50. Kf2 {[%clk 0:01:02]}  Rh3 {[%clk 0:00:17]} 51. Rxg5 {[%clk 0:00:54]}  Nxb3 {[%clk 0:00:15]} 52. Rxe5 {[%clk 0:00:52]}  Nd2 {[%clk 0:00:13]} 53. Rf5 {[%clk 0:00:49]}  Nc4 {[%clk 0:00:09]} 54. e5 {[%clk 0:00:44]}  Rh6 {[%clk 0:00:05]} 55. Bd5 {[%clk 0:00:39]}  Nb2 {[%clk 0:00:03]} 56. Bf3 {[%clk 0:00:23]}  Kc5 {[%clk 0:00:03]} 57. Be2 {[%clk 0:00:20]}  Nc4 {[%clk 0:00:03]} 58. e6+ {[%clk 0:00:17]}  Kd6 {[%clk 0:00:04]} 59. Rxb5 {[%clk 0:00:17]}  Rf6+ {[%clk 0:00:03]} 60. Ke1 {[%clk 0:00:17]}  Ne5 {[%clk 0:00:02]} 61. Rb6+ {[%clk 0:00:15]}  Ke7 {[%clk 0:00:02]} 62. Kd2 {[%clk 0:00:13]}  Rxe6 {[%clk 0:00:03]} 63. Rb7+ {[%clk 0:00:13]}  Kf6 {[%clk 0:00:03]} 64. c4 {[%clk 0:00:12]}  Rd6+ {[%clk 0:00:03]} 65. Kc3 {[%clk 0:00:12]}  Nc6 {[%clk 0:00:02]} 66. Bf3 {[%clk 0:00:12]}  Ne5 {[%clk 0:00:01]} 67. Bd5 {[%clk 0:00:12]}  Rd7 {[%clk 0:00:01]} 68. Rb6+ {[%clk 0:00:11]}  Kf5 {[%clk 0:00:02]} 69. Kd4 {[%clk 0:00:12]}  Rd8 {[%clk 0:00:02]} 70. Rb1 {[%clk 0:00:10]}  Nf3+ {[%clk 0:00:02]} 71. Kc5 {[%clk 0:00:10]}  Ne5 {[%clk 0:00:02]} 72. Rf1+ {[%clk 0:00:10]}  Kg6 {[%clk 0:00:02]} 73. Kd4 {[%clk 0:00:10]}  Nxc4 {[%clk 0:00:02]} 74. Kxc4 {[%clk 0:00:10]}  Kg5 {[%clk 0:00:02]} 75. Kd4 {[%clk 0:00:10]}  Re8 {[%clk 0:00:02]} 76. Be4 {[%clk 0:00:10]}  Re7 {[%clk 0:00:02]} 77. Ke3 {[%clk 0:00:10]}  Re6 {[%clk 0:00:02]} 78. Rf5+ {[%clk 0:00:10]}  Kg4 {[%clk 0:00:02]} 79. Rf1 {[%clk 0:00:08]}  Kg5 {[%clk 0:00:02]} 80. Rg1+ {[%clk 0:00:09]}  Kf6 {[%clk 0:00:02]} 81. Kf4 {[%clk 0:00:09]}  Ke7 {[%clk 0:00:02]} 82. Bf5 {[%clk 0:00:08]}  Rb6 {[%clk 0:00:02]} 83. Rg7+ {[%clk 0:00:08]}  Kd6 {[%clk 0:00:02]} 84. Rg6+ {[%clk 0:00:07]}  Kc5 {[%clk 0:00:03]} 85. Rg1 {[%clk 0:00:07]}  Rd6 {[%clk 0:00:02]} 86. Be4 {[%clk 0:00:06]}  Rd7 {[%clk 0:00:02]} 87. Rc1+ {[%clk 0:00:03]}  Kd6 {[%clk 0:00:02]} 88. Rc6+ {[%clk 0:00:03]}  Ke7 {[%clk 0:00:02]} 89. Ke5 {[%clk 0:00:03]}  Ra7 {[%clk 0:00:02]} 90. Bd5 {[%clk 0:00:04]}  Rd7 {[%clk 0:00:02]} 91. Rh6 {[%clk 0:00:04]}  Kd8 {[%clk 0:00:02]} 92. Be6 {[%clk 0:00:02]}  Rg7 {[%clk 0:00:02]} 93. Kd6 {[%clk 0:00:02]} 1-0


[Site "https://www.chess.com"]